Cogmind - Beta 9.6 @@@ ROGUE MODE // 2020.05.11 @ 12:37:49 Player: Teratos Result: Self-destructed Performance ------------- Evolutions (1) 500 Regions Visited (2) 400 Robots Destroyed (11) 55 Value Destroyed (103) 103 Prototype IDs (0) 0 Alien Tech Used (0) 0 Bonus (0) 0 TOTAL SCORE: 1058 Bonus ------- None Cogmind --------- Core Integrity 388/400 Matter 83/300 Energy 0/100 System Corruption 0% Temperature Cool (0) Movement Core (50) Location -9/Materials Parts ------- > --- POWER (2) -------- (None) > --- PROPULSION (2) --- (None) > --- UTILITY (3) ------ ECM Suite > --- WEAPON (2) ------- Mini Grenade Launcher Mini Grenade Launcher > --- INVENTORY (4) ---- Katana Katana Peak State ------------ > --- POWER ------------ Light Ion Engine > --- PROPULSION ------- Flight Unit Flight Unit > --- UTILITY ---------- ECM Suite Hardened Light Armor Plating Hacking Suite > --- WEAPON ----------- Katana Katana > --- INVENTORY -------- Flight Unit Flight Unit Mini Grenade Launcher Mini Grenade Launcher [Rating: 15] Favorites ----------- Power Light Ion Engine Engine Light Ion Engine Propulsion Flight Unit Treads Light Treads Flight Unit Flight Unit Utility Hacking Suite Device ECM Suite Storage Small Storage Unit Processor Transport Network Coupler Hackware Hacking Suite Protection Hardened Light Armor Plating Weapon Light Assault Rifle Ballistic Gun Light Assault Rifle Launcher Mini Grenade Launcher Slashing Weapon Katana Build | -11 -10 -9 ------- Run | Scr Mat Mat Slots Evolved 2 | . . 2 Power 1 | . . 1 Propulsion . | . . . Utility 1 | . . 1 Weapon . | . . . Parts Attached 30 | 5 16 9 Power 4 | 1 2 1 Engine 4 | 1 2 1 Core . | . . . Reactor . | . . . Propulsion 9 | 2 5 2 Treads 2 | 2 . . Leg . | . . . Wheel . | . . . Hover . | . . . Flight 7 | . 5 2 Utility 6 | . 4 2 Device 2 | . 2 . Storage 1 | . . 1 Processor 1 | . 1 . Hackware 1 | . 1 . Protection 1 | . . 1 Artifact . | . . . Weapon 11 | 2 5 4 Energy Gun . | . . . Energy Cannon . | . . . Ballistic Gun 5 | 2 3 . Ballistic Cannon . | . . . Launcher 4 | . 2 2 Special Weapon . | . . . Impact Weapon . | . . . Slashing Weapon 2 | . . 2 Piercing Weapon . | . . . Special Melee Weapon . | . . . Unidentified Prototypes . | . . . Parts Lost 6 | . . 6 Power 1 | . . 1 Propulsion 4 | . . 4 Utility 1 | . . 1 Weapon . | . . . Highest Loss Streak 6 | . . 6 Average Slot Usage (%) 82 | . 85 74 Engine 12 | . 14 9 Treads 4 | . 6 . Flight 21 | . 21 20 Device 6 | . 4 11 Processor 1 | . 2 . Hackware 8 | . 7 10 Ballistic Gun 13 | . 19 . Launcher 7 | . 8 3 Slashing Weapon 5 | . . 18 Naked Turns . | . . . Heaviest Build 8 | 8 8 8 Greatest Support 40 | 40 40 8 Greatest Overweight (x) 1 | . 1 . Average Overweight (x) . | . . . Largest Inventory Capacity 6 | 4 4 6 Average Capacity 4 | 4 4 4 Most Carried 4 | . 4 4 Average Carried 2 | . 2 3 Final Capacity 4 | 4 4 4 Final Carried 4 | . 4 2 Class Distribution -------------------- 86% | Mutant 13% | Scavenger-Mutant Dominant Class ---------------- Mutant | -10/Materials Mutant | -9/Materials Resources | -11 -10 -9 ----------- Run | Scr Mat Mat Matter Collected 443 | 103 340 . Remotely . | . . . Salvage Created 219 | . 219 . Parts 22 | . 22 . Haulers Intercepted 1 | . 1 . Recyclers Shooed . | . . . Parts Field Recycled . | . . . Retrieved Matter . | . . . Parts Self-Destructed . | . . . Prevented . | . . . Kills | -11 -10 -9 ------- Run | Scr Mat Mat Combat Hostiles Destroyed 8 | . 8 . Guns 8 | . 8 . Classes Destroyed 4 | . 4 . Builder 1 | . 1 . Hauler 1 | . 1 . Operator 1 | . 1 . Swarmer 8 | . 8 . Best Kill Streak 5 | . 5 . Combat Bots Only 3 | . 3 . Max Kills in Single Turn 1 | . 1 . Gunslinging . | . . . Exploded . | . . . Melee . | . . . Uniques/NPCs Destroyed . | . . . Combat | -11 -10 -9 -------- Run | Scr Mat Mat Damage Taken 494 | . 314 180 Core 82 | . 70 12 Absorbed by Shields . | . . . Core Remaining (%) 86 | 100 72 . Volleys Fired 47 | . 47 . Largest 2 | . 2 . Hottest 60 | . 60 . Shots Fired 91 | . 91 . Gun 84 | . 84 . Cannon . | . . . Launcher 7 | . 7 . Special . | . . . Kinetic 84 | . 84 . Thermal . | . . . Explosive 7 | . 7 . Electromagnetic . | . . . Robot Hit Streak 7 | . 7 . Robot Miss Streak 4 | . 4 . Penetration Max . | . . . Secondary Targets 2 | . 2 . Max Gunslinging Chain 1 | . 1 . Shots Hit Robots 45 | . 41 4 Core Hits 18 | . 18 . Critical Hits . | . . . Critical Kills . | . . . Critical Parts Destroyed . | . . . Melee Attacks 4 | . . 4 Impact . | . . . Slashing 4 | . . 4 Piercing . | . . . Sneak Attacks 1 | . . 1 Combat Hostiles . | . . . Follow-up Attacks . | . . . Damage Inflicted 596 | . 401 195 Guns 401 | . 401 . Cannons . | . . . Explosions . | . . . Melee 195 | . . 195 Ramming . | . . . Kinetic 401 | . 401 . Thermal . | . . . Explosive . | . . . Electromagnetic . | . . . Impact . | . . . Slashing 195 | . . 195 Piercing . | . . . Highest Corruption . | . . . Average Corruption . | . . . Corruption Purged . | . . . Overload Shots . | . . . Overflow Damage 81 | . . 81 Projectiles . | . . . Explosions . | . . . Melee 81 | . . 81 Knockbacks . | . . . Impact . | . . . Kinetic . | . . . Secondary . | . . . Self-Inflicted Damage 3 | . 3 . Shots 1 | . 1 . Rammed . | . . . Targets Rammed . | . . . Kicked . | . . . Crushed . | . . . Highest Temperature 30 | . 30 . Average Temperature 5 | . 5 . Received Heat Transfer 111 | . 12 99 Siege Activations . | . . . Robots Corrupted . | . . . Combat Hostiles . | . . . Parts Fried . | . . . Impact Corruptions . | . . . Robots Melted . | . . . Combat Hostiles . | . . . Parts Melted . | . . . Heat Transferred . | . . . Parts Sabotaged . | . . . Parts Stolen . | . . . Parts Stripped . | . . . Power Chain Reactions . | . . . Missiles Intercepted . | . . . Alert | -11 -10 -9 ------- Run | Scr Mat Mat Peak Influence 284 | . 284 15 Average Influence 90 | . 135 8 Maximum Alert Level 1 | . 1 . Low Security (%) 78 | 100 67 100 Level 1 21 | . 32 . Level 2 . | . . . Level 3 . | . . . Level 4 . | . . . Level 5 . | . . . High Security . | . . . Max Security . | . . . Squads Dispatched 7 | . 3 4 Investigation 3 | . 2 1 Extermination . | . . . Reinforcement 4 | . 1 3 Assault . | . . . Garrison . | . . . Intercept . | . . . Construction Impeded . | . . . Haulers Reinforced . | . . . Stealth | -11 -10 -9 --------- Run | Scr Mat Mat Distress Signals 6 | . 2 4 Communications Jammed . | . . . Distress Signals . | . . . Times Spotted 54 | . 31 23 Peak Tracking Total 8 | . 6 8 Tactical Retreats 8 | . 4 4 Traps | -11 -10 -9 ------- Run | Scr Mat Mat Traps Triggered 1 | . 1 . Indirectly . | . . . Trap Hack Attempts . | . . . Triggered . | . . . Disarmed . | . . . Reprogrammed 1 | . . 1 Reused 1 | . . 1 Traps Extracted . | . . . Installed . | . . . Triggered 1 | . . 1 Machines | -11 -10 -9 ---------- Run | Scr Mat Mat Machines Disabled . | . . . Max in Single Turn . | . . . Machines Sabotaged . | . . . Garrisons Compromised . | . . . Overloaded Fab Kills . | . . . Fab Network Shutdowns . | . . . Hacking | -11 -10 -9 --------- Run | Scr Mat Mat Machines Accessed 10 | . 7 3 Terminals 9 | . 7 2 Fabricators . | . . . Repair Stations 1 | . . 1 Recycling Units . | . . . Scanalyzers . | . . . Garrison Access . | . . . Total Hacks 34 | . 27 7 Successful 22 | . 17 5 Failed 12 | . 10 2 Catastrophic 1 | . . 1 Database Lockouts . | . . . Manual . | . . . Terminals 32 | . 27 5 Fabricators . | . . . Repair Stations 2 | . . 2 Recycling Units . | . . . Scanalyzers . | . . . Garrison Access . | . . . Terminal Hacks 20 | . 17 3 Record 4 | . 3 1 Robot Analysis 1 | . 1 . Branch Access Points 1 | . 1 . Emergency Access Points 1 | . 1 . Repair Station Index 1 | . 1 . Alert Level 1 | . 1 . Unreport Threat 1 | . 1 . Locate Traps 2 | . 1 1 Reprogram Traps 1 | . . 1 Dispatch Records 1 | . 1 . Maintenance Status 1 | . 1 . Hauler Manifests 1 | . 1 . Registered Prototypes 1 | . 1 . Zone Layout 3 | . 3 . Fabricator Hacks . | . . . Repair Station Hacks 2 | . . 2 Scan Component 1 | . . 1 Repair 1 | . . 1 Recycling Unit Hacks . | . . . Scanalyzer . | . . . Garrison Access Hacks . | . . . Unauthorized Hacks . | . . . Terminals . | . . . Fabricators . | . . . Repair Stations . | . . . Recycling Units . | . . . Scanalyzers . | . . . Garrison Access . | . . . Data Cores Recovered 1 | . 1 . Used 1 | . 1 . Hacking Detections 9 | . 6 3 Full Trace Events 4 | . 3 1 Feedback Events . | . . . Feedback Blocked . | . . . Robot Schematics Acquired . | . . . Robots Built . | . . . Matter . | . . . Time . | . . . Total Robot Build Rating . | . . . Part Schematics Acquired . | . . . Parts Built . | . . . Matter . | . . . Time . | . . . Total Part Build Rating . | . . . Parts Repaired 1 | . . 1 Time 26 | . . 26 Parts Recycled . | . . . Recycled Matter . | . . . Retrieved Matter . | . . . Retrieved Components . | . . . Parts Scanalyzed . | . . . Part Schematics Acquired . | . . . Parts Damaged . | . . . Bothacking | -11 -10 -9 ------------ Run | Scr Mat Mat Used RIF Installer . | . . . Robots Hacked . | . . . Non-combat . | . . . Combat . | . . . Robot Hacks Applied . | . . . Relay Couplers Released . | . . . Robots Rewired . | . . . Allies Hacked . | . . . Hacks Repelled . | . . . Allies | -11 -10 -9 -------- Run | Scr Mat Mat Total Allies . | . . . Largest Group . | . . . Highest-Rated Group . | . . . Highest-Rated Ally . | . . . Total Orders . | . . . Ally Attacks . | . . . Total Damage . | . . . Kills . | . . . Allies Corrupted . | . . . Allies Melted . | . . . Intel | -11 -10 -9 ------- Run | Scr Mat Mat Robot Analysis Total 1 | . 1 . Derelict Logs Recovered . | . . . Drone Launches . | . . . Drone Recoveries . | . . . Exploration | -11 -10 -9 ------------- Run | Scr Mat Mat Turns Passed 814 | 55 531 228 Spaces Moved 889 | 36 646 207 Core 17 | 8 . 9 Treads 78 | 28 50 . Legs . | . . . Wheels . | . . . Hover . | . . . Flight 794 | . 596 198 Fastest Speed 37 | 50 37 37 Average Speed 48 | 135 46 37 Slowest Speed 160 | 160 160 50 Overloaded Moves . | . . . Propulsion Burnouts . | . . . Robots Hopped 12 | . 8 4 Cave-ins Triggered . | . . . Exploration Rate (%) 36 | 4 91 15 Regions Visited 2 Branch Regions . Pre-discovered Areas . | . . . Known Exits Taken . | . . . Unknown Exits Taken 2 | 1 1 . Scrap Searched . | . . . Spaces Dug . | . . . Terrain Destroyed 67 | . 67 . Melee . | . . . Projectile . | . . . AOE 67 | . 67 . Actions | -11 -10 -9 --------- Run | Scr Mat Mat Total 1174 | 40 788 346 Wait 192 | . 68 124 Move 863 | 35 629 199 Hop 12 | . 8 4 Pick Up 6 | . 6 . Fast Attach 21 | 5 11 5 Attach 2 | . . 2 Detach 2 | . . 2 Swap 7 | . 5 2 Drop 18 | . 14 4 Fire 47 | . 47 . Melee 4 | . . 4 Ram . | . . . Kick . | . . . Crush . | . . . Escape Stasis . | . . . Rewire . | . . . Trap . | . . . Miscellaneous . | . . . Route ------- -11/Scrapyard -10/Materials (discovered 4 exits: *Mat x3 / *Min) -9/Materials History --------- Turn | Location | Event 2 | -11/Scrapyard | Met Revision 17 4 | -11/Scrapyard | Discovered new exit (range 15) 56 | -11/Scrapyard | Entered Materials 161 | -10/Materials | Discovered new exit (range 16) 354 | -10/Materials | Discovered new exit (range 16) 399 | -10/Materials | Discovered new exit (range 14) 516 | -10/Materials | Discovered new exit (range 8) 520 | -10/Materials | Identified exit to Mines 587 | -10/Materials | Entered another Materials area 587 | -9/Materials | Evolved 2 slots: Power x1, Utility x1 679 | -9/Materials | Repaired Lgt. Ion Engine 719 | -9/Materials | Build established: Mutant 815 | -9/Materials | Self-destructed Last Messages --------------- 00679_ Repair station completes Lgt. Ion Engine repairs. 00679_ Acquired Lgt. Ion Engine. 00712_ ALERT: Hostiles spotted, dispatching reinforcements to Terminal M010. 00716_ O-16 Technician sends out distress signal. 00716_ O-16 Technician: "IFF HANDSHAKE FAILED. SECURING TERMINAL." 00718_ ALERT: Hostiles spotted, dispatching reinforcements to Terminal M001. 00736_ Acquired Hrd. Light Armor Plating. 00737_ Dropped Hrd. Light Armor Plating. 00758_ Sneak attack on M-13 Machinist. 00758_ Destroyed Wheel. 00758_ M-13 Machinist sends out distress signal. 00758_ Flight Unit destroyed. 00780_ Destroyed Sml. Laser. 00785_ Flight Unit destroyed. 00805_ Lgt. Ion Engine destroyed. 00807_ Flight Unit destroyed. 00807_ Hacking Suite destroyed. 00807_ Flight Unit destroyed. Map ----- +----------------------------------------------------+ | | | | | | | | | | | | | | | | | | | | | | | | | | | | | | | | | | | | | | | | | | | | | ??????????????????##########??###########???????? | | ??????????######### #??# !!! #???????? | | ????????? # """ #??# !!! #???????? | | ????????# """ ""# """@ #??# !!! #???????? | | ????????# """"" ""# """ #??#[ #???????? | | ????????# """"" T"# #??#####/###/#???????? | | ####????# """"" ""# """ = ###### # #???????? | | #????# """ ""# "R + # #???????? | | #????# # """ ###### #### #???????? | | #????# # ##"""# #??# #???????? | | ##########+########+######"T"# #### #???????? | | = #???????? | | [ #???????? | | ^ ##/########?? | | #### ###+######### # #?? | | ???# # #????# # #?? | | ???#!!]] /# """ #????# # #?? | | ???#!!]]/ # """ #????# """ / " # """"""" #?? | | ???######## """ #????# """ T # """"""" #?? | | ??????????# #????# """ " # """"""" #?? | | ??????????# """ #????# + """""""???? | | ??????????# """ #????# # """"""????? | | ??????????# """ #????###########+#########?????? | | ??????????#! #????????# ] #???????? | | ??????????# #????????#"S #???????? | | ??????????# #????????#""" """ """ #???????? | | ??????????# #????????# "" """ """ #???????? | | ??????????# "T" #????????# """ """ #???????? | +----------------------------------------------------+ Best States ------------- Heat Dissipation 28 Energy Generation 10 Energy Capacity 250 Matter Stores 185 Matter Capacity 300 Sight Range 16 Terrain Scan Density 10 ECM Strength 1 Evasion (%) 62 Recoil Reduction 2 Offensive Hacking 10 Item Schematics ----------------- None Robot Schematics ------------------ None Fabricated ------------ Nothing Alien Tech Used ----------------- None Achievements -------------- Dynamic Key Challenges ------------ None Game ------ Seed LargeGatlingBlaster Manual? 0 Play Time 00:22:09 Cumulative 16.8 hours Start 2020.05.11 @ 12:14:30 End 2020.05.11 @ 12:37:49 Sessions 1 Manual Loads 0 Difficulty Rogue Special Mode None Game No. 33 Rogue 33 Adventurer 0 Explorer 0 Win Type - Total 0 Types 0/0/0/0/0/0/0 Lore% 4 Gallery% 17 Achievement% 15 Wizard Run 0 Options --------- ASCII 0 Keyboard 0 Movement Numpad Keybinds 0 Fullscreen 1 Font 18/SmallcapsGlow Map View 76x50 Tactical HUD 1 Map Filters NONE Filters NONE Steam 1 RUN: 6bd9c09c-eb38-449b-bb87-8544665797af